Cogmind - Beta 13 @@@ ROGUE MODE // 2024.04.01 @ 14:36:36 Player: Olafz Result: Destroyed by Y-45 Defender with Heavy Assault Rifle Performance ------------- Evolutions (1) 500 Regions Visited (2) 400 Robots Destroyed (11) 55 Value Destroyed (309) 309 Prototype IDs (0) 0 Alien Tech Used (0) 0 Bonus (0) 0 TOTAL SCORE: 1264 Bonus ------- None Cogmind --------- Core Integrity 0/400 Matter 280/300 Energy 85/100 System Corruption 0% Temperature Cool (9) Movement Flying (195) Ox2 Location -9/Materials Parts ------- > --- POWER (1) -------- (None) > --- PROPULSION (3) --- VTOL Module > --- UTILITY (3) ------ Small Storage Unit > --- WEAPON (2) ------- EMP Blaster > --- INVENTORY (8) ---- Ion Engine Ion Engine Aluminum Leg Aluminum Leg Wheel Peak State ------------ > --- POWER ------------ Light Nuclear Core > --- PROPULSION ------- Aluminum Leg Aluminum Leg > --- UTILITY ---------- Small Storage Unit Structural Scanner > --- WEAPON ----------- Small Laser Small Laser > --- INVENTORY -------- Ion Engine Ion Engine Aluminum Leg Wheel [Rating: 9] Favorites ----------- Power Light Nuclear Core Engine Ion Engine Power Core Light Nuclear Core Propulsion Aluminum Leg Leg Aluminum Leg Wheel Wheel Flight Unit VTOL Module Utility Small Storage Unit Device Structural Scanner Storage Small Storage Unit Weapon Small Laser Energy Gun Small Laser Ballistic Gun Assault Rifle Launcher EMP Blaster Special Melee Weapon Datajack Build | -11 -10 -9 ------- Run | Yrd Mat Mat Slots Evolved 2 | . . 2 Power . | . . . Propulsion 1 | . . 1 Utility 1 | . . 1 Weapon . | . . . Parts Attached 21 | 6 11 4 Power 3 | 1 2 . Engine 1 | 1 . . Core 2 | . 2 . Reactor . | . . . Propulsion 8 | 2 5 1 Treads . | . . . Leg 5 | . 5 . Wheel 2 | 2 . . Hover . | . . . Flight 1 | . . 1 Utility 2 | 1 1 . Device 1 | . 1 . Storage 1 | 1 . . Processor . | . . . Hackware . | . . . Protection . | . . . Artifact . | . . . Weapon 8 | 2 3 3 Energy Gun 5 | 1 3 1 Energy Cannon . | . . . Ballistic Gun 1 | 1 . . Ballistic Cannon . | . . . Launcher 1 | . . 1 Special Weapon . | . . . Impact Weapon . | . . . Slashing Weapon . | . . . Piercing Weapon . | . . . Special Melee Weapon 1 | . . 1 Unidentified Prototypes . | . . . Parts Lost 14 | . 7 7 Power 3 | . 2 1 Propulsion 5 | . 3 2 Utility 1 | . . 1 Weapon 5 | . 2 3 Highest Loss Streak 7 | . 7 7 To Critical Strikes . | . . . Average Slot Usage (%) 73 | . 82 54 Engine 2 | . 3 . Core 8 | . 9 6 Leg 17 | . 18 14 Wheel 4 | . 6 . Device 4 | . 4 5 Storage 13 | . 14 11 Energy Gun 17 | . 21 9 Ballistic Gun 2 | . 3 . Special Melee Weapon 2 | . . 6 Naked Turns . | . . . Heaviest Build 13 | 13 13 13 Greatest Support 20 | 20 20 20 Greatest Overweight (x) 2 | . 1 2 Average Overweight (x) . | . . . Largest Inventory Capacity 8 | 8 8 8 Average Capacity 7 | 6 8 8 Most Carried 8 | 1 8 7 Average Carried 3 | . 2 5 Final Capacity 8 | 8 8 8 Final Carried 6 | 1 6 5 Class Distribution -------------------- 52% | Scavenger-Mutant 47% | Mutant Dominant Class ---------------- Scavenger-Mutant | -10/Materials Scavenger-Mutant | -9/Materials Resources | -11 -10 -9 ----------- Run | Yrd Mat Mat Matter Collected 389 | 209 180 . Remotely . | . . . Salvage Created 379 | 17 362 . Parts 30 | 1 29 . Haulers Intercepted . | . . . Recyclers Shooed 2 | . 2 . Parts Field Recycled . | . . . Retrieved Matter . | . . . Parts Self-Destructed . | . . . Prevented . | . . . Kills | -11 -10 -9 ------- Run | Yrd Mat Mat Combat Hostiles Destroyed 8 | . 8 . Guns 8 | . 8 . Classes Destroyed 4 | 1 3 . Worker 1 | . 1 . Tunneler 1 | 1 . . Watcher 1 | . 1 . Grunt 8 | . 8 . Best Kill Streak 5 | 1 5 . Combat Bots Only 3 | . 3 . Max Kills in Single Turn 1 | 1 1 . Gunslinging . | . . . Exploded . | . . . Melee . | . . . Uniques/NPCs Destroyed . | . . . Combat | -11 -10 -9 -------- Run | Yrd Mat Mat Hostile Shots Fired 183 | . 102 81 Missed 54 | . 32 22 Damage Taken 1652 | 3 851 798 Core 649 | 1 240 408 Absorbed by Shields . | . . . Core Remaining (%) 51 | 99 3 . Volleys Fired 78 | 4 59 15 Largest 2 | 2 2 2 Hottest 80 | 60 80 80 Shots Fired 109 | 8 83 18 Gun 109 | 8 83 18 Cannon . | . . . Launcher . | . . . Special . | . . . Kinetic 20 | 4 16 . Thermal 89 | 4 67 18 Explosive . | . . . Electromagnetic . | . . . Robot Hit Streak 9 | 5 9 3 Robot Miss Streak 4 | 2 4 4 Penetration Max . | . . . Secondary Targets 1 | . 1 . Max Gunslinging Chain 1 | . 1 . Shots Hit Robots 72 | 6 55 11 Core Hits 27 | 1 23 3 Critical Kills . | . . . Critical Parts Destroyed . | . . . Critical Strikes . | . . . Melee Attacks 9 | . . 9 Impact . | . . . Slashing . | . . . Piercing . | . . . Sneak Attacks 1 | . . 1 Combat Hostiles . | . . . Follow-up Attacks . | . . . Damage Inflicted 877 | 81 688 108 Guns 863 | 74 688 101 Cannons . | . . . Explosions . | . . . Melee . | . . . Ramming 14 | 7 . 7 Kinetic 202 | 43 159 . Thermal 661 | 31 529 101 Explosive . | . . . Electromagnetic . | . . . Impact . | . . . Slashing . | . . . Piercing . | . . . Highest Corruption . | . . . Average Corruption . | . . . Corruption Purged . | . . . Corruption Blocked . | . . . Overload Shots . | . . . Overflow Damage . | . . . Projectiles . | . . . Explosions . | . . . Melee . | . . . Knockbacks . | . . . Impact . | . . . Kinetic . | . . . Secondary . | . . . Self-Inflicted Damage 6 | 3 . 3 Shots . | . . . Rammed 4 | 2 . 2 Targets Rammed 4 | 2 . 2 Kicked . | . . . Crushed . | . . . Highest Temperature 258 | . 258 30 Average Temperature 74 | . 81 11 Received Heat Transfer 828 | . 477 351 Effects 2 | . 2 . Interference 2 | . 2 . Siege Activations . | . . . Robots Corrupted . | . . . Combat Hostiles . | . . . Parts Fried . | . . . Impact Corruptions . | . . . Robots Melted . | . . . Combat Hostiles . | . . . Parts Melted . | . . . Heat Transferred 1500 | 75 1200 225 Parts Sabotaged . | . . . Parts Stolen . | . . . Parts Stripped . | . . . Power Chain Reactions . | . . . Alert | -11 -10 -9 ------- Run | Yrd Mat Mat Peak Influence 144 | 5 144 20 Initial 3 | . 3 . Average 29 | 1 46 4 Maximum Alert Level . | . . . Low Security (%) 100 | 100 100 100 Level 1 . | . . . Level 2 . | . . . Level 3 . | . . . Level 4 . | . . . Level 5 . | . . . High Security . | . . . Max Security . | . . . Squads Dispatched 2 | . 1 1 Investigation 1 | . 1 . Extermination . | . . . Reinforcement 1 | . . 1 Assault . | . . . Garrison . | . . . Intercept . | . . . Searches Triggered . | . . . Construction Impeded . | . . . Haulers Reinforced . | . . . Active Scanning Responses . | . . . Cargo Convoy Interrupts . | . . . Stealth | -11 -10 -9 --------- Run | Yrd Mat Mat Distress Signals 1 | . 1 . Communications Jammed . | . . . Distress Signals . | . . . Times Spotted 21 | . 14 7 Peak Tracking Total 5 | . 4 5 Tactical Retreats 1 | . . 1 Traps | -11 -10 -9 ------- Run | Yrd Mat Mat Traps Triggered . | . . . Indirectly . | . . . Trap Hack Attempts . | . . . Triggered . | . . . Disarmed . | . . . Reprogrammed . | . . . Reused . | . . . Traps Extracted . | . . . Installed . | . . . Triggered . | . . . Machines | -11 -10 -9 ---------- Run | Yrd Mat Mat Machines Disabled . | . . . Max in Single Turn . | . . . Machines Repaired . | . . . Machines Dismantled . | . . . Machines Sabotaged . | . . . Overloaded Fab Kills . | . . . Hacking | -11 -10 -9 --------- Run | Yrd Mat Mat Machines Accessed 1 | . 1 . Terminals 1 | . 1 . Fabricators . | . . . Repair Stations . | . . . Recycling Units . | . . . Scanalyzers . | . . . Garrison Access . | . . . Total Hacks 3 | . 3 . Successful 2 | . 2 . Failed 1 | . 1 . Catastrophic . | . . . Database Lockouts . | . . . Manual . | . . . Terminals 3 | . 3 . Fabricators . | . . . Repair Stations . | . . . Recycling Units . | . . . Scanalyzers . | . . . Garrison Access . | . . . Terminal Hacks 2 | . 2 . Robot Analysis 1 | . 1 . Investigation Status 1 | . 1 . Fabricator Hacks . | . . . Repair Station Hacks . | . . . Recycling Unit Hacks . | . . . Scanalyzer . | . . . Garrison Access Hacks . | . . . Unauthorized Hacks . | . . . Terminals . | . . . Fabricators . | . . . Repair Stations . | . . . Recycling Units . | . . . Scanalyzers . | . . . Garrison Access . | . . . Data Cores Recovered 1 | . 1 . Used . | . . . Hacking Detections 1 | . 1 . Full Trace Events 1 | . 1 . Feedback Events . | . . . Feedback Blocked . | . . . Robot Schematics Acquired . | . . . Robots Built . | . . . Authchips . | . . . Time . | . . . Total Robot Build Rating . | . . . Part Schematics Acquired . | . . . Parts Built . | . . . Authchips . | . . . Time . | . . . Total Part Build Rating . | . . . Parts Repaired . | . . . Time . | . . . Parts Recycled . | . . . Recycled Matter . | . . . Retrieved Matter . | . . . Retrieved Components . | . . . Parts Scanalyzed . | . . . Part Schematics Acquired . | . . . Parts Damaged . | . . . Bothacking | -11 -10 -9 ------------ Run | Yrd Mat Mat Used RIF Installer . | . . . Robots Hacked 3 | . . 3 Non-combat 1 | . . 1 Combat 2 | . . 2 Robot Hacks Applied 3 | . . 3 parse_system 2 | . . 2 no_distress 1 | . . 1 Relay Couplers Released . | . . . Fabnet Peak Effective % . | . . . Robots Rewired . | . . . Allies Hacked . | . . . Hacks Repelled . | . . . Allies | -11 -10 -9 -------- Run | Yrd Mat Mat Total Allies . | . . . Largest Group . | . . . Highest-Rated Group . | . . . Highest-Rated Ally . | . . . Total Orders . | . . . Ally Attacks . | . . . Total Damage . | . . . Kills . | . . . Allies Corrupted . | . . . Allies Melted . | . . . Intel | -11 -10 -9 ------- Run | Yrd Mat Mat Robot Analysis Total 1 | . 1 . Derelict Logs Recovered . | . . . Drone Launches . | . . . Drone Recoveries . | . . . Exploration | -11 -10 -9 ------------- Run | Yrd Mat Mat Turns Passed 729 | 78 449 202 Spaces Moved 459 | 71 258 130 Core 56 | 9 1 46 Treads . | . . . Legs 267 | . 183 84 Wheels 136 | 62 74 . Hover . | . . . Flight . | . . . Fastest Speed 50 | 50 80 100 Average Speed 106 | 76 110 114 Slowest Speed 190 | 80 190 150 Overloaded Moves . | . . . Propulsion Burnouts . | . . . Robots Hopped . | . . . Cave-ins Triggered . | . . . Exploration Rate (%) 22 | 4 52 12 Regions Visited 2 Branch Regions . Pre-discovered Areas . | . . . Known Exits Taken . | . . . Unknown Exits Taken 2 | 1 1 . Scrap Searched . | . . . Spaces Dug . | . . . Terrain Destroyed . | . . . Melee . | . . . Projectile . | . . . AOE . | . . . Terrain Rammed . | . . . Walls Destroyed . | . . . Machines Disabled . | . . . Actions | -11 -10 -9 --------- Run | Yrd Mat Mat Total 579 | 83 335 161 Wait . | . . . Move 457 | 70 257 130 Hop . | . . . Pick Up 6 | 1 5 . Fast Attach 16 | 6 8 2 Attach 2 | . . 2 Detach 1 | . . 1 Swap 3 | . 3 . Drop 3 | . 3 . Fire 78 | 4 59 15 Melee 9 | . . 9 Ram 4 | 2 . 2 Kick . | . . . Crush . | . . . Escape Stasis . | . . . Rewire . | . . . Trap . | . . . Miscellaneous . | . . . Route ------- -11/Scrapyard -10/Materials -9/Materials History --------- Turn | Location | Event 11 | -11/Scrapyard | Discovered new exit (range 15) 79 | -11/Scrapyard | Entered Materials 198 | -10/Materials | Core integrity fell below 50% 254 | -10/Materials | Lost 7 parts (2p3n2w) 422 | -10/Materials | Core integrity fell below 20% 475 | -10/Materials | Discovered new exit (range 16) 528 | -10/Materials | Entered another Materials area 528 | -9/Materials | Evolved 2 slots: Propulsion x1, Utility x1 587 | -9/Materials | Build established: Scavenger-Mutant 677 | -9/Materials | Core integrity fell below 50% 701 | -9/Materials | Core integrity fell below 20% 715 | -9/Materials | Lost 7 parts (1p2n1u3w) 730 | -9/Materials | Destroyed by Y-45 Defender with Heavy Assault Rifle Last Messages --------------- 00677_ Sml. Laser destroyed. 00677_ U-05 Engineer lays Concrete. 00678_ G-34 Mercenary IFF system glitched. 00678_ U-05 Engineer lays Concrete. 00682_ G-34 Mercenary IFF system glitched. 00683_ U-05 Engineer lays Concrete. 00684_ G-34 Mercenary heat short circuits Heat Sink. 00684_ U-05 Engineer lays Concrete. 00684_ Datajack destroyed. 00685_ U-05 Engineer lays Concrete. 00687_ Slammed into T-07 Excavator. 00688_ G-34 Mercenary heat damages Aluminum Leg. 00688_ U-05 Engineer lays Concrete. 00689_ G-34 Mercenary heat spikes uncontrollably. 00689_ U-05 Engineer lays Concrete. 00698_ K-01 Serf collects debris. 00700_ Y-45 Defender IFF system glitched. 00720_ Slammed into T-07 Excavator. 00723_ Acquired EMP Blaster. 00729_ Acquired VTOL Module. Map ----- +----------------------------------------------------+ | ??????????????????????????? #########+######???? | | ?????????????????????????????????# *%=[=%[#???? | | ?????????????????????????????????# " =[ *!=#???? | | ?????????????????????????????????# " !! #???? | | ?????????????????????????????????# " ##??? | | ?????????????????????????????????# " #??? | | ?????????????????????????????????#= " ##??? | | ?????????????????????????????????# % #???? | | ?????????????????????????????????########/####???? | | ??????????????????????????????????????# #?????? | | ??????????????????????????????????????# #?????? | | ???????????????????????????????######## +?????? | | ???????????????????????? #?????? | | ?????????????????????????????########### ##?????? | | ?????????????????????????????# # #??????? | | ?????????????????????????????# / #??????? | | ?????????????????????????????# # #??????? | | ?????????????????????????????# # #??????? | | ????????????????????##########+######### #??????? | | ????????????????????# # #???????# #??????? | | ????????????????????# [[[ # #???????# #??????? | | ????????????????????# [[[ # #???????# #??????? | | ????????????????????# [[[ # ##??????# #??????? | | ????????????????????# %+ #??????+ #??????? | | ????????????????????# # +?????# #??????? | | ????????????????????# @ # ##?????? #??????? | | ????????????????????# # #??????? #??????? | | ????????????????????# # #??????? #??????? | | ????????????????????#######Y## ??????? ??????? | | ??????????????????????????#### ?????? ??????? | | ?????????????????????????????###+#??????###??????? | | ?????????????????????????????????????????????????? | | ?????????????????????????????????????????????????? | | ?????????????????????????????????????????????????? | | ?????????????????????????????????????????????????? | | ?????????????????????????????????????????????????? | | ?????????????????????????????????????????????????? | | ?????????????????????????????????????????????????? | | ?????????????????????????????????????????????????? | | ?????????????????????????????????????????????????? | | ?????????????????????????????????????????????????? | | ?????????????????????????????????????????????????? | | ?????????????????????????????????????????????????? | | | | | | | | | | | | | | | +----------------------------------------------------+ Best States ------------- Heat Dissipation 28 Energy Generation 14 Energy Capacity 250 Matter Stores 300 Matter Capacity 300 Sight Range 16 Terrain Scan Density 10 Evasion (%) 55 Item Schematics ----------------- None Robot Schematics ------------------ None Fabricated ------------ Nothing Alien Tech Used ----------------- None Achievements -------------- Close Call Challenges ------------ None Game ------ Seed RiotPhysicsBattery Manual? 0 Play Time 00:11:04 Cumulative 6.0 hours Start 2024.04.01 @ 14:18:38 End 2024.04.01 @ 14:36:36 Sessions 1 Manual Loads 0 Difficulty Rogue Special Mode None Game No. 12 Rogue 10 Adventurer 2 Explorer 0 Win Type - Total 0 Types 0/0/0/0/0/0/0/0/0 Lore% 12 Gallery% 13 Achievement% 13 Wizard Run 0 Options --------- Layout 0 ASCII 0 Keyboard 1 Movement Arrows Keybinds 0 Fullscreen 2 Font 18/SmallcapsGlow Map View 76x50 Zoom Use 0% Tactical HUD 1 Map Filters NONE Filters NONE Steam 1 RUN: 315d8fb3-46c8-4f87-932f-dc66f7135c0a